bitfinex/quotes_ETHUSD_20250331
["timestamp","ask_amount","ask_price","bid_price","bid_amount"]
[1743420707113,0.1,1807.9,1807.8,59.67917763]
[1743420711243,0.1,1807.9,1807.8,27.77217763]
[1743420714742,0.1,1807.9,1807.8,28.32217763]
[1743420715346,0.7789,1808.8,1808.0,0.8143]
[1743420715537,0.7789,1808.8,1808.2,0.7676]
[1743420715736,3.7789,1808.8,1808.3,0.0552892]
[1743420715937,3.7789,1808.8,1808.4,14.5]
[1743420716151,3.7789,1808.8,1808.5,6.942]
[1743420716355,0.7789,1808.8,1808.5,6.942]
[1743420719428,3.95036549,1808.8,1808.5,6.942]
[1743420719849,3.0,1808.7,1808.5,17.132]
[1743420722343,3.0,1808.7,1808.5,15.682]
[1743420722742,0.7789,1808.8,1808.5,10.19]
[1743420722743,6.30746,1808.8,1808.5,10.19]
[1743420723054,11.70059549,1808.6,1808.5,10.19]
[1743420723223,12.50799549,1808.6,1808.5,10.19]
[1743420723426,14.31169304,1808.6,1808.5,10.19]
[1743420723954,0.8074,1808.6,1808.5,10.19]
[1743420724324,3.8074,1808.6,1808.5,10.19]
[1743420724747,0.8074,1808.6,1808.5,10.19]
[1743420724964,3.7534,1808.8,1808.5,10.19]
[1743420725270,3.7534,1808.8,1808.6,5.49]
[1743420727968,0.7534,1808.8,1808.6,5.49]
[1743420730269,3.8797,1808.9,1808.6,6.039]
[1743420730566,0.1,1808.9,1808.7,0.05528921]
[1743420730872,0.1,1808.9,1808.6,6.039]
[1743420731939,5.62826,1808.9,1808.6,5.49]
[1743420732138,3.93416549,1808.8,1808.7,5.489]
[1743420732567,6.93416549,1808.8,1808.7,5.489]
[1743420733467,17.99138549,1808.8,1808.5,10.19]
[1743420733668,0.7735,1808.5,1808.3,5.489]
[1743420733843,6.30303,1808.5,1808.3,5.489]
[1743420734039,8.70129549,1808.4,1808.2,31.9]
[1743420734263,6.28225,1808.3,1808.2,31.9]
[1743420734738,3.92366549,1808.3,1808.2,31.9]
[1743420734936,0.7522,1808.3,1808.2,31.9]
[1743420735370,3.0,1808.4,1808.2,35.2440425]
[1743420735867,0.752,1808.5,1808.2,35.2440425]
[1743420736080,3.7962,1808.7,1808.3,0.86739653]
[1743420736268,3.7962,1808.7,1808.3,0.8121]
[1743420737345,3.0,1808.7,1808.4,0.05529104]
[1743420737546,3.0,1808.7,1808.5,5.489]
[1743420738376,9.45470549,1808.6,1808.2,42.8586]
[1743420738578,9.45470549,1808.6,1808.4,5.489]
[1743420739575,3.92546549,1808.6,1808.4,5.489]
[1743420739745,3.0,1808.7,1808.4,5.489]
[1743420740249,8.52892,1808.7,1808.4,5.489]
[1743420740444,0.1,1808.9,1808.4,6.11519]
[1743420740698,3.27146549,1808.9,1808.4,16.30519]
[1743420740994,3.0,1808.8,1808.4,16.30519]
[1743420741555,3.27146549,1808.9,1808.5,10.953]
[1743420741787,0.1,1808.9,1808.6,1.0953]
[1743420741984,0.1,1808.9,1808.7,0.05528246]
[1743420742152,0.1,1808.9,1808.8,5.489]
[1743420743751,0.1,1808.9,1808.8,6.33558247]
[1743420743949,0.1,1808.9,1808.8,6.2803]
[1743420744180,0.1,1808.9,1808.8,7.92733]
[1743420744578,0.1,1808.9,1808.8,7.13603]
[1743420744752,0.1,1808.9,1808.8,7.13503]
[1743420744956,3.27146549,1808.9,1808.8,5.488]
[1743420745161,3.27146549,1808.9,1808.7,15.678]
[1743420745801,8.79968549,1808.9,1808.7,15.678]
[1743420746709,14.32806549,1808.9,1808.7,15.678]
[1743420746874,9.46368549,1808.8,1808.7,10.19]
[1743420747613,9.46368549,1808.8,1808.2,5.488]
[1743420747614,3.0,1808.5,1808.2,5.488]
[1743420747887,6.17146549,1808.5,1808.2,5.488]
[1743420748187,3.0,1808.5,1808.2,5.488]
[1743420748396,8.52945,1808.5,1808.2,5.488]
[1743420748581,0.7967,1808.4,1808.2,5.488]
[1743420748960,0.7967,1808.4,1808.2,7.0558]
[1743420749463,9.49804549,1808.4,1808.2,5.488]
[1743420749877,9.49804549,1808.4,1807.9,10.19]
[1743420750090,8.70162549,1808.3,1808.0,5.488]
[1743420750505,14.23188549,1808.3,1808.0,5.488]
[1743420750690,8.70162549,1808.3,1808.0,5.488]
[1743420752213,3.17146549,1808.1,1807.9,10.19]
[1743420752377,3.17146549,1808.0,1807.9,5.488]
[1743420752703,3.17146549,1808.0,1807.8,31.895]
[1743420752908,6.94646549,1808.1,1807.8,37.383]
[1743420753393,12.47722549,1808.1,1807.8,37.383]
[1743420753572,6.94646549,1808.1,1807.8,37.383]
[1743420754268,3.17146549,1807.9,1807.8,37.383]
[1743420754481,9.52473549,1807.9,1807.8,37.383]
[1743420755490,5.53191,1807.7,1807.2,10.9833]
[1743420755683,8.70337549,1807.7,1807.3,5.488]
[1743420755880,8.70337549,1807.7,1807.3,1.65266251]
[1743420756087,8.70337549,1807.7,1807.4,5.488]
[1743420756385,3.17146549,1807.7,1807.4,5.488]
[1743420757085,3.17146549,1807.6,1807.4,5.488]
[1743420757295,3.17146549,1807.7,1807.4,5.488]
[1743420757812,3.17146549,1807.7,1807.4,6.20206625]
[1743420757995,3.0,1807.8,1807.4,6.25739314]
[1743420758313,3.0,1807.8,1807.4,7.03939314]
[1743420758791,3.17146549,1807.7,1807.4,6.20206625]
[1743420760694,0.8136,1807.6,1807.4,5.488]
[1743420761058,6.34582,1807.6,1807.4,5.488]
[1743420761689,3.17146549,1807.5,1807.2,10.19]
[1743420761994,3.17146549,1807.3,1807.2,15.679]
[1743420762189,10.39731704,1807.3,1807.1,37.391]
[1743420762398,3.17146549,1807.2,1807.1,37.391]
[1743420762962,11.70488549,1807.2,1807.1,37.391]
[1743420763161,5.53375,1807.1,1806.6,10.9581]
[1743420763373,3.17146549,1807.1,1806.7,5.489]
[1743420763571,6.17146549,1807.2,1806.7,7.13924424]
[1743420763766,6.17146549,1807.2,1806.7,7.19458671]
[1743420764995,6.17146549,1807.2,1806.8,14.5]
[1743420765194,3.0,1807.2,1806.8,14.5]
[1743420766697,3.0,1807.2,1806.8,24.69]
[1743420768268,3.0,1807.2,1806.8,27.87292442]
[1743420768964,3.0,1807.2,1806.9,0.7722]
[1743420769566,3.0,1807.2,1806.9,15.2722]
[1743420771201,8.53359,1807.2,1806.9,14.5]
[1743420771375,3.0,1807.2,1806.9,14.5]
[1743420771976,3.0,1807.2,1806.8,13.37292442]
[1743420772491,5.53374,1807.1,1806.8,27.87292442]
[1743420772684,3.17146549,1807.1,1806.8,14.5]
[1743420773400,0.7618,1807.0,1806.6,10.19]
[1743420773599,3.17146549,1806.9,1806.7,5.489]
[1743420773803,10.50597704,1806.9,1806.7,5.489]
[1743420774005,6.33565,1806.8,1806.5,10.19]
[1743420774304,0.7801,1806.5,1806.4,31.908]
[1743420775008,0.7801,1806.6,1806.4,31.908]
[1743420775979,5.53556,1806.5,1806.4,31.908]
[1743420776182,6.31537,1806.6,1806.4,31.908]
[1743420777006,3.95156549,1806.6,1806.4,31.908]
[1743420777313,3.7801,1806.6,1806.4,31.908]
[1743420777483,6.95156549,1806.6,1806.4,31.908]
[1743420777680,12.48709549,1806.6,1806.4,31.908]
[1743420777912,5.53604,1806.4,1806.1,10.29]
[1743420778080,14.24366549,1806.4,1806.1,10.29]
[1743420778287,12.51394549,1806.2,1806.1,0.1]
[1743420779326,13.08944549,1806.2,1806.1,0.1]
[1743420779506,19.09692353,1806.2,1806.1,0.1]
[1743420780610,15.92545804,1806.2,1806.1,0.1]
[1743420780813,19.09692353,1806.2,1806.1,0.1]
[1743420781131,15.92545804,1806.2,1806.1,0.1]
[1743420781290,19.09692353,1806.2,1806.1,0.1]
[1743420781487,15.92545804,1806.2,1806.1,0.1]
[1743420781695,0.8315,1806.2,1806.1,0.1]
[1743420781898,3.17146549,1806.3,1806.1,0.1]
[1743420782292,3.0,1806.2,1806.1,0.1]
[1743420782507,8.70785549,1806.3,1806.1,0.1]
[1743420782700,7.18506555,1806.2,1806.1,0.1]
[1743420782900,10.18506555,1806.2,1806.1,0.1]
[1743420783417,13.35653104,1806.2,1806.1,0.1]
[1743420784307,13.90653104,1806.2,1806.1,0.1]
[1743420784892,13.35653104,1806.2,1806.1,0.1]
[1743420785635,13.77293893,1806.2,1806.1,0.1]
[1743420786718,14.32293893,1806.2,1806.1,0.1]
[1743420787719,17.49440442,1806.2,1806.1,0.1]
[1743420787924,14.32293893,1806.2,1806.1,0.1]
[1743420793529,10.60147344,1806.2,1806.1,0.1]
[1743420793714,13.77293893,1806.2,1806.1,0.1]
[1743420794496,3.58787338,1806.2,1806.1,0.1]
[1743420794697,0.41640789,1806.2,1806.1,0.1]
[1743420794999,3.17146549,1806.2,1806.1,0.1]
[1743420795525,8.70794549,1806.2,1806.1,0.1]
[1743420797026,3.17146549,1806.2,1806.1,0.1]
[1743420797602,3.17146549,1806.3,1806.1,0.8516]
[1743420797798,3.17146549,1806.3,1806.1,0.1]
[1743420799031,8.70765549,1806.3,1806.1,0.1]
[1743420799536,3.17146549,1806.3,1806.1,0.1]
[1743420799934,8.70765549,1806.3,1806.1,0.1]
[1743420800837,3.17146549,1806.3,1806.1,0.1]
[1743420801132,8.70765549,1806.3,1806.1,0.1]
[1743420801332,9.28858,1806.2,1806.1,0.1]
[1743420803412,9.70330334,1806.2,1806.1,0.1]
[1743420804609,10.25330334,1806.2,1806.1,0.1]
[1743420806635,5.53955,1805.2,1805.0,0.8105]
[1743420806836,9.26497049,1805.2,1805.0,0.8105]
[1743420807036,8.71101549,1805.2,1805.0,0.8105]
[1743420807636,8.71101549,1805.2,1805.0,1.91343423]
[1743420808415,8.71101549,1805.2,1805.0,0.8105]
[1743420810340,8.71101549,1805.2,1804.9,1.12456257]
[1743420810639,11.71101549,1805.2,1804.9,1.12456257]
[1743420811743,13.04981549,1805.2,1804.6,10.968]
[1743420813448,12.49981549,1805.2,1804.6,10.968]
[1743420813823,12.91686596,1805.2,1804.7,1.126784]
[1743420814016,15.0796251,1805.2,1804.7,1.126784]
[1743420817649,12.12806596,1805.2,1804.7,1.126784]
[1743420817848,6.58851596,1805.2,1804.9,0.8062]
[1743420818227,12.12806596,1805.2,1804.9,0.8062]
[1743420818435,3.41705047,1805.2,1804.9,0.8062]
[1743420818637,12.12806596,1805.2,1804.9,0.8062]
[1743420818849,14.21196011,1805.2,1804.9,0.8062]
[1743420820930,8.67241011,1805.2,1804.9,0.8062]
[1743420821135,14.21196011,1805.2,1804.9,0.8062]
[1743420822239,14.21196011,1805.2,1804.9,1.89699202]
[1743420822566,3.41705047,1805.2,1804.9,1.89699202]
[1743420823263,0.41705047,1805.2,1804.9,1.89699202]
[1743420823435,8.71072549,1805.3,1804.9,0.8062]
[1743420823859,3.0,1805.2,1804.9,0.8062]
[1743420824436,3.0,1805.5,1805.1,0.8723]
[1743420824641,3.0,1805.2,1805.1,0.8723]
[1743420825532,3.17146549,1805.3,1805.1,0.8723]
[1743420827966,0.7819,1805.9,1805.2,0.7566]
[1743420828153,3.17146549,1805.7,1805.3,0.7566]
[1743420829161,11.47049655,1805.9,1805.3,0.7566]
[1743420829162,3.17146549,1805.6,1805.3,0.7566]
[1743420829767,5.53689,1806.1,1805.4,0.82478662]
[1743420829972,3.17146549,1805.7,1805.5,0.7694]
[1743420830173,3.17146549,1805.7,1805.5,10.9594]
[1743420830372,5.53684,1806.1,1805.5,10.19]
[1743420830548,3.17146549,1805.9,1805.6,0.7716]
[1743420830751,3.17146549,1805.9,1805.7,0.8275]
[1743420831267,3.17146549,1806.0,1805.7,0.8275]
[1743420831468,3.17146549,1806.0,1805.8,0.8241]
[1743420831870,3.17146549,1805.9,1805.8,0.8241]
[1743420832846,3.17146549,1805.9,1805.6,0.8241]
[1743420833052,3.17146549,1805.7,1805.6,0.8241]
[1743420833250,3.17146549,1805.7,1805.5,15.681]
[1743420834369,3.17146549,1805.7,1805.5,5.491]
[1743420836565,3.17146549,1805.9,1805.6,0.7713]
[1743420838879,3.17146549,1805.9,1805.6,0.82667617]
[1743420839059,0.42581761,1806.2,1805.7,0.8146]
[1743420839259,6.17146549,1806.1,1805.7,0.8146]
[1743420839664,6.17146549,1806.1,1805.7,0.86997179]
[1743420841457,3.0,1806.1,1805.7,0.86997179]
[1743420841951,3.0,1806.1,1805.8,0.7695]
[1743420842163,3.17146549,1806.3,1805.9,5.49]
[1743420842364,3.17146549,1806.5,1806.0,0.84997055]
[1743420842566,3.17146549,1806.6,1806.0,0.7946]
[1743420842768,6.17146549,1806.6,1806.1,0.05536199]
[1743420842992,6.17146549,1806.6,1806.2,0.7946]
[1743420843193,3.5813686,1806.7,1806.3,5.489]
[1743420843368,6.17146549,1806.6,1806.4,0.7946]
[1743420843896,3.17146549,1806.6,1806.4,0.7946]
[1743420844402,6.5813686,1806.7,1806.4,0.7946]
[1743420844773,12.1163586,1806.7,1806.4,0.7946]
[1743420845179,17.6515986,1806.7,1806.4,0.7946]
[1743420845408,17.6515986,1806.7,1806.3,5.489]
[1743420845409,3.17146549,1806.5,1806.2,16.4736]
[1743420847292,6.5813686,1806.7,1806.2,15.679]
[1743420847474,6.5813686,1806.7,1806.4,0.7779]
[1743420847677,6.17146549,1806.7,1806.4,0.7779]
[1743420847871,5.5347,1806.8,1806.4,0.7779]
[1743420847872,3.0,1806.8,1806.4,0.7779]
[1743420848091,5.53382,1807.1,1806.5,0.83325034]
[1743420848388,8.70559549,1807.0,1806.7,0.7779]
[1743420848589,9.12344294,1807.0,1806.7,0.7779]
[1743420848796,3.0,1806.9,1806.7,0.7779]
[1743420849683,3.17146549,1806.8,1806.6,5.488]
[1743420850304,8.70613549,1806.8,1806.6,5.488]
[1743420850478,3.17146549,1806.8,1806.6,5.488]
[1743420850893,3.17146549,1806.8,1806.7,0.7963]
[1743420851314,3.0,1806.9,1806.7,0.7963]
[1743420851604,3.0,1806.9,1806.7,1.43026515]
[1743420852106,3.0,1806.9,1806.7,11.62026515]
[1743420852901,6.17146549,1806.9,1806.7,11.62026515]
[1743420853211,6.17146549,1806.9,1806.7,10.9863]
[1743420854077,3.0,1806.9,1806.7,10.9863]
[1743420855486,8.53447,1806.9,1806.7,10.19]
[1743420856787,3.0,1806.9,1806.7,10.19]
[1743420857385,11.06897,1806.9,1806.7,10.19]
[1743420857688,11.06897,1806.9,1806.6,10.19]
[1743420857912,5.53443,1806.9,1806.6,10.19]
[1743420858713,11.06894,1806.9,1806.6,10.19]
[1743420858890,3.17146549,1806.8,1806.6,10.19]
[1743420860200,9.53820549,1806.8,1806.6,10.19]
[1743420860403,15.07302549,1806.8,1806.6,10.19]
[1743420860919,5.53495,1806.7,1806.6,10.19]
[1743420861225,5.53495,1806.7,1806.5,5.485]
[1743420861226,5.53495,1806.7,1806.4,10.19]
[1743420862025,3.17146549,1806.6,1806.4,10.19]
[1743420862196,5.53495,1806.7,1806.4,10.19]
[1743420862588,4.00346549,1806.8,1806.4,17.32216]
[1743420863725,4.00346549,1806.8,1806.4,10.19]
[1743420863923,9.30167,1806.4,1805.8,15.675]
[1743420864100,8.70766549,1806.3,1806.0,0.7758]
[1743420864612,14.24403549,1806.3,1805.9,10.19]
[1743420864813,8.70766549,1806.3,1805.9,10.19]
[1743420864995,8.70766549,1806.3,1805.9,11.83508]
[1743420865892,3.17146549,1806.3,1805.9,11.83508]
[1743420866093,8.70770549,1806.3,1805.9,11.83508]
[1743420866294,3.17146549,1806.3,1805.9,11.83508]
[1743420866495,8.70764549,1806.3,1805.9,11.83508]
[1743420867320,8.70767549,1806.3,1805.9,11.83508]
[1743420867827,3.17146549,1806.3,1805.9,11.83508]
[1743420868028,3.17146549,1806.5,1806.1,0.8314]
[1743420868199,14.07084,1806.6,1806.1,0.8314]
[1743420868396,8.70705549,1806.5,1806.1,0.8314]
[1743420868596,9.87776104,1806.5,1806.1,0.8314]
[1743420868803,8.70771549,1806.3,1805.9,12.65288]
[1743420869596,8.70771549,1806.3,1805.9,11.0078]
[1743420869796,8.70771549,1806.3,1805.9,11.06316715]
[1743420870622,5.53649,1806.2,1805.9,11.0078]
[1743420871121,3.97146549,1806.1,1805.9,10.19]
[1743420871338,5.53709,1806.0,1805.7,6.59347674]
[1743420871528,3.17146549,1805.8,1805.7,6.59347674]
[1743420871693,0.8,1806.1,1805.7,7.40817674]
[1743420871893,3.17146549,1806.0,1805.7,7.40817674]
[1743420872294,14.24595549,1806.0,1805.7,7.40817674]
[1743420872528,14.24595549,1806.0,1805.7,6.59347674]
[1743420872729,8.70867549,1806.0,1805.7,6.59347674]
[1743420873026,14.24601549,1806.0,1805.7,6.59347674]
[1743420873342,5.53757,1805.9,1805.7,6.59347674]
[1743420874002,8.70917549,1805.8,1805.7,6.59347674]
[1743420874330,12.52067549,1805.8,1805.7,6.59347674]
[1743420874518,11.70917549,1805.8,1805.7,6.59347674]
[1743420875314,11.13153374,1805.8,1805.7,6.59347674]
[1743420876730,6.17146549,1805.8,1805.7,6.59347674]
[1743420876935,6.17146549,1805.8,1805.7,7.25282441]
[1743420877634,6.17146549,1805.8,1805.7,6.59347674]
[1743420877928,11.70917549,1805.8,1805.7,6.59347674]
[1743420878715,5.5381,1805.7,1805.5,11.29239015]
[1743420878913,3.17146549,1805.6,1805.5,11.29239015]
[1743420879113,3.17146549,1805.6,1805.4,42.123]
[1743420879437,3.17146549,1805.6,1805.4,47.71693617]
[1743420880206,3.17146549,1805.8,1805.4,47.71693617]
[1743420880737,8.70920549,1805.8,1805.5,0.7656]
[1743420881135,9.46367549,1805.6,1805.4,31.933]
[1743420881328,15.94862304,1805.6,1805.4,31.933]
[1743420881510,15.00225549,1805.6,1805.4,31.933]
[1743420881715,5.53785,1805.8,1805.4,31.933]
[1743420881912,3.17146549,1805.8,1805.4,32.7584]
[1743420882560,8.70920549,1805.8,1805.5,14.5]
[1743420882764,5.53816,1805.7,1805.4,32.7584]
[1743420882923,8.70988549,1805.6,1805.4,31.933]
[1743420883617,3.17146549,1805.6,1805.4,31.933]
[1743420883824,8.70921549,1805.8,1805.5,0.777]
[1743420884257,9.36893,1805.9,1805.4,42.123]
[1743420884258,3.17146549,1805.6,1805.4,42.123]
[1743420886560,3.17146549,1805.7,1805.4,42.123]
[1743420886733,3.17146549,1805.7,1805.5,4.2123]
[1743420886919,3.0,1805.9,1805.5,0.7613]
[1743420887119,3.0,1806.0,1805.6,5.54038553]
[1743420887344,3.0,1806.0,1805.6,15.73038553]
[1743420887652,3.0,1806.0,1805.6,30.175]
[1743420887954,3.0,1806.0,1805.7,3.0175]
[1743420888250,3.0,1806.0,1805.8,0.7593]
[1743420889555,9.53440549,1805.9,1805.7,10.19]
[1743420889720,3.17146549,1805.9,1805.7,10.19]
[1743420889926,3.17146549,1805.9,1805.7,11.0166]
[1743420892226,6.17146549,1806.1,1805.7,12.11826]
[1743420892551,11.70836549,1806.1,1805.7,12.11826]
[1743420892759,17.24531549,1806.1,1805.7,12.11826]
[1743420892959,3.17146549,1805.9,1805.7,1.92826]
[1743420894669,3.17146549,1805.9,1805.7,1.98363398]
[1743420894976,3.17146549,1805.9,1805.7,1.92826]
[1743420895403,3.17146549,1805.9,1805.6,10.19]
[1743420895699,8.70907549,1805.9,1805.6,10.19]
[1743420897276,14.24664549,1805.9,1805.6,10.19]
[1743420897588,3.17146549,1805.9,1805.6,10.19]
[1743420897788,3.17146549,1805.9,1805.6,10.24537872]
[1743420898100,3.17146549,1805.9,1805.7,1.02453787]
[1743420898960,8.70887549,1805.9,1805.7,1.02453787]
[1743420899162,8.70887549,1805.9,1805.6,10.19]
[1743420899352,14.24645549,1805.9,1805.6,10.19]
[1743420899560,14.24642549,1805.9,1805.6,10.19]
[1743420899981,3.17146549,1805.7,1805.6,10.19]
[1743420900685,3.17146549,1805.9,1805.6,10.19]
[1743420900884,8.70907549,1805.9,1805.6,11.83707]
[1743420901099,8.70907549,1805.9,1805.6,10.19]
[1743420901299,14.24662549,1805.9,1805.6,10.19]
[1743420901606,8.70901549,1805.9,1805.6,10.19]
[1743420902060,3.17146549,1805.9,1805.6,10.19]
[1743420903361,14.24644549,1805.9,1805.6,10.19]
[1743420903561,8.70887549,1805.9,1805.6,10.19]
[1743420904357,5.53771,1805.8,1805.6,10.19]
[1743420904569,8.70947549,1805.7,1805.3,16.4995]
[1743420904764,8.70947549,1805.7,1805.3,18.14945]
[1743420905491,3.17146549,1805.7,1805.3,18.14945]
[1743420905869,3.17146549,1805.9,1805.5,0.7765]
[1743420906081,3.17146549,1805.9,1805.6,0.05538018]
[1743420906283,3.17146549,1806.1,1805.6,0.05537559]
[1743420906594,3.17146549,1806.3,1805.8,0.7765]
[1743420906792,3.17146549,1806.3,1805.7,5.484]
[1743420906793,3.17146549,1806.3,1806.0,0.8209]
[1743420907096,3.17146549,1806.5,1806.2,0.8209]
[1743420907692,6.17146549,1806.6,1806.2,0.8209]
[1743420907903,3.17146549,1806.3,1805.9,14.5]
[1743420908060,11.07379,1806.1,1805.6,0.42476771]
[1743420908267,8.76392253,1806.0,1805.6,0.42476771]
[1743420908576,8.76392253,1806.0,1805.5,0.7523]
[1743420908763,8.76392253,1806.0,1805.5,6.3053]
[1743420908963,14.30124253,1806.0,1805.5,6.3053]
[1743420909186,8.70856549,1806.0,1805.5,6.93583]
[1743420909390,3.17146549,1806.0,1805.6,0.05537626]
[1743420910095,3.17146549,1806.0,1805.7,0.8194]
[1743420910302,3.17146549,1806.0,1805.7,6.3684]
[1743420910707,5.53588,1806.4,1805.9,0.8326]
[1743420910879,3.17146549,1806.2,1805.9,0.8326]
[1743420912019,8.70807549,1806.2,1805.9,0.8326]
[1743420912202,3.17146549,1806.2,1805.9,0.8326]
[1743420912524,8.70795549,1806.2,1805.9,0.8326]
[1743420913124,8.70795549,1806.2,1805.7,5.549]
[1743420913125,5.53545,1806.6,1805.7,5.549]
[1743420913303,3.17146549,1806.6,1806.1,0.7588]
[1743420913606,8.70689549,1806.6,1806.2,5.555]
[1743420913772,3.17146549,1806.4,1806.2,5.555]
[1743420914376,6.34914,1806.9,1806.3,0.7544]
[1743420914604,3.17146549,1806.8,1806.4,0.05535154]
[1743420915017,8.70558549,1807.0,1806.5,0.05534999]
[1743420915204,8.76094253,1807.0,1806.6,6.3084]
[1743420915378,3.17146549,1806.8,1806.6,6.3084]
[1743420918905,8.76090253,1807.0,1806.6,6.3084]
[1743420919312,8.76090253,1807.0,1806.6,16.4984]
[1743420919609,14.29515253,1807.0,1806.6,18.14824]
[1743420919911,14.23982549,1807.0,1806.6,18.14824]
[1743420920218,14.23979549,1807.0,1806.6,18.14824]
[1743420921226,8.70554549,1807.0,1806.6,18.14824]
[1743420921426,3.22682253,1807.0,1806.6,18.14824]
[1743420921726,3.0,1807.2,1806.8,0.7797]
[1743420922025,3.0,1807.2,1806.8,10.9697]
[1743420922325,3.17146549,1807.3,1806.9,0.05533633]
[1743420922522,3.17146549,1807.3,1807.0,5.53]
[1743420923221,0.05535704,1807.4,1807.1,0.8121]
[1743420923420,8.70431549,1807.4,1807.1,0.8121]
[1743420923626,8.70478549,1807.3,1807.1,0.8121]
[1743420923828,3.17146549,1807.3,1807.1,0.8121]
[1743420924130,5.53291,1807.4,1807.1,0.8121]
[1743420924131,3.17146549,1807.4,1807.1,0.8121]
[1743420924331,3.17146549,1807.4,1807.1,0.86743141]
[1743420924795,3.17146549,1807.4,1807.1,0.8121]
[1743420924993,8.70437549,1807.4,1807.1,0.8121]
[1743420925224,8.70437549,1807.4,1807.1,11.0021]
[1743420925712,3.17146549,1807.4,1807.1,11.05743142]
[1743420926109,3.17146549,1807.4,1807.1,11.0021]
[1743420926319,3.17146549,1807.4,1807.1,11.05743142]
[1743420926924,8.70429549,1807.4,1807.1,11.05743142]
[1743420927127,8.75965253,1807.4,1807.1,11.0021]
[1743420927509,14.29263253,1807.4,1807.1,11.0021]
[1743420927854,3.17146549,1807.2,1807.1,10.19]
[1743420928011,8.76024253,1807.2,1807.1,10.19]
[1743420928330,8.70488549,1807.2,1807.1,10.19]
[1743420928630,8.76024253,1807.2,1807.1,10.19]
[1743420929132,3.17146549,1807.2,1807.1,10.19]
[1743420929914,13.31428022,1807.4,1807.1,10.19]
[1743420930117,10.17596571,1807.4,1807.1,10.19]
[1743420930446,5.53222,1807.6,1807.2,0.83963358]
[1743420930648,3.22682253,1807.6,1807.2,10.9743]
[1743420930807,3.17146549,1807.6,1807.3,5.511]
[1743420931313,8.70376549,1807.6,1807.3,5.511]
[1743420931728,8.75912253,1807.6,1807.4,0.59095346]
[1743420931928,5.53189,1807.7,1807.4,0.59095346]
[1743420932110,8.70309549,1807.8,1807.5,0.58729034]
[1743420932310,14.23488549,1807.8,1807.5,0.58729034]
[1743420932722,5.58731704,1807.7,1807.5,0.58729034]
[1743420932914,5.58731704,1807.7,1807.4,0.8166]
[1743420933429,0.05535704,1807.7,1807.4,0.8166]
[1743420933624,8.70309549,1807.8,1807.4,1.44936]
[1743420933821,8.70309549,1807.8,1807.5,0.58517117]
[1743420934040,14.23485549,1807.8,1807.5,10.77517117]
[1743420934217,5.53191,1807.7,1807.5,10.77517117]
[1743420934618,3.17146549,1807.8,1807.5,10.77517117]
[1743420934818,3.22682253,1807.8,1807.5,10.77517117]
[1743420935156,8.75853253,1807.8,1807.5,10.77517117]
[1743420935721,8.75852253,1807.8,1807.5,10.77517117]
[1743420937145,5.53207,1807.7,1807.5,10.77517117]
[1743420938017,14.23484549,1807.8,1807.5,10.77517117]
[1743420938218,5.53193,1807.7,1807.5,10.77517117]
[1743420939060,11.06403,1807.7,1807.5,10.77517117]
[1743420939237,8.70308549,1807.8,1807.5,10.77517117]
[1743420939440,14.29018253,1807.8,1807.5,10.77517117]
[1743420939642,14.23482549,1807.8,1807.5,10.77517117]
[1743420940439,11.06405,1807.7,1807.5,10.77517117]
[1743420940757,11.75901253,1807.6,1807.5,10.77517117]
[1743420940925,11.70365549,1807.6,1807.5,10.77517117]
[1743420941127,11.70365549,1807.6,1807.5,10.19]
[1743420941455,11.70365549,1807.6,1807.5,10.72553188]
[1743420942166,5.53201,1807.7,1807.5,10.72553188]
[1743420942455,5.58741704,1807.7,1807.5,10.72553188]
[1743420942750,5.53219,1807.6,1807.5,10.72553188]
[1743420942951,5.53219,1807.6,1807.5,10.19]
[1743420943155,5.53219,1807.6,1807.5,10.72665882]
[1743420945955,3.17146549,1807.7,1807.5,0.53665882]
[1743420946157,5.58725704,1807.7,1807.5,0.53665882]
[1743420946339,5.5319,1807.7,1807.5,0.53665882]
[1743420946540,11.11931704,1807.7,1807.5,0.53665882]
[1743420946740,11.06396,1807.7,1807.5,0.53665882]
[1743420946963,8.70365549,1807.6,1807.5,0.53665882]
[1743420947460,3.17146549,1807.6,1807.5,0.53665882]
[1743420948149,8.70365549,1807.6,1807.5,0.53665882]
[1743420948651,8.75901253,1807.6,1807.5,0.53665882]
[1743420948853,8.70365549,1807.6,1807.5,0.53665882]
[1743420949043,3.17146549,1807.6,1807.5,0.53665882]
[1743420949644,8.70365549,1807.6,1807.5,0.53665882]
[1743420950274,8.75901253,1807.6,1807.5,0.53665882]
[1743420950930,3.17146549,1807.6,1807.5,0.53665882]
[1743420951660,5.58725704,1807.7,1807.5,0.53665882]
[1743420952044,11.11934704,1807.7,1807.5,0.53665882]
[1743420952344,11.06399,1807.7,1807.5,0.53665882]
[1743420953263,5.53219,1807.6,1807.5,0.53665882]
[1743420953433,8.75901253,1807.6,1807.5,0.53665882]
[1743420955062,8.70365549,1807.6,1807.5,0.53665882]
[1743420955435,5.5319,1807.7,1807.5,0.53665882]
[1743420955964,8.70308549,1807.8,1807.5,0.53665882]
[1743420956164,5.53189,1807.7,1807.5,0.53665882]
[1743420956354,11.06403,1807.7,1807.5,0.53665882]
[1743420957547,3.17146549,1807.6,1807.5,0.53665882]
[1743420958644,12.53065549,1807.6,1807.5,0.53665882]
[1743420962872,9.21378877,1807.9,1807.5,0.53665882]
[1743420963169,9.21378877,1807.9,1807.6,0.81581908]
[1743420963170,0.1,1807.9,1807.6,0.81581908]
[1743420963371,0.1,1807.9,1807.6,0.7605]
[1743420963668,0.1,1807.9,1807.8,0.7795]
[1743420963869,0.1,1807.9,1807.8,10.9695]
[1743420964053,0.1,1807.9,1807.8,12.56144695]
[1743420965279,0.1,1807.9,1807.8,18.04144695]